bitfinex/quotes_BTCUSD_20250225
["timestamp","ask_amount","ask_price","bid_price","bid_amount"]
[1740467502078,0.65423589,91220.0,91153.0,0.2476]
[1740467502286,1.03563419,91220.0,91153.0,0.2476]
[1740467502483,1.03563419,91220.0,91154.0,0.08769238]
[1740467502679,0.98073589,91219.0,91217.0,0.08769238]
[1740467502857,0.1419783,91180.0,91164.0,0.08769238]
[1740467503218,0.1419783,91180.0,91179.0,0.08769238]
[1740467504335,0.15934232,91180.0,91179.0,0.08769238]
[1740467505027,0.00137178,91217.0,91180.0,0.003]
[1740467505230,0.00150145,91217.0,91216.0,0.07588897]
[1740467505859,0.01873153,91217.0,91216.0,0.07588897]
[1740467506073,0.05182353,91217.0,91216.0,0.02790721]
[1740467506283,0.05491851,91289.0,91196.0,0.08769238]
[1740467506488,0.05497091,91287.0,91179.0,0.08769238]
[1740467506640,0.01137583,91217.0,91194.0,0.04187672]
[1740467506836,0.14502548,91269.0,91204.0,0.08769238]
[1740467507058,0.65423589,91268.0,91204.0,0.08769238]
[1740467507231,0.79926137,91267.0,91194.0,0.04187672]
[1740467507443,0.65423589,91266.0,91194.0,0.04187672]
[1740467508025,0.08769238,91256.0,91175.0,0.2476]
[1740467508219,0.79926137,91255.0,91175.0,0.2476]
[1740467508424,0.08769238,91246.0,91175.0,0.2476]
[1740467508629,0.0548867,91254.0,91175.0,0.2476]
[1740467508872,0.01136871,91216.0,91175.0,0.2476]
[1740467509043,0.79926137,91215.0,91175.0,0.2476]
[1740467509655,0.38166379,91214.0,91175.0,0.2476]
[1740467509828,0.3930537,91214.0,91175.0,0.2476]
[1740467510014,0.3930537,91214.0,91175.0,0.24803188]
[1740467511579,0.01138991,91214.0,91175.0,0.24803188]
[1740467512612,0.0485,91212.0,91175.0,0.24803188]
[1740467512823,0.08769238,91203.0,91175.0,0.24803188]
[1740467513022,0.08769238,91188.0,91175.0,0.24803188]
[1740467513228,1.2041,91187.0,91175.0,0.24803188]
[1740467513517,0.8776,91186.0,91175.0,0.00043188]
[1740467513727,0.08769238,91176.0,91175.0,0.00043188]
[1740467513933,1.346779,91176.0,91175.0,0.00043188]
[1740467514136,1.476579,91176.0,91166.0,28.46028393]
[1740467514339,1.38931842,91176.0,91166.0,28.46028393]
[1740467514680,0.05423564,91172.0,91166.0,28.46028393]
[1740467514887,0.05443846,91170.0,91166.0,28.23986413]
[1740467515108,1.7291,91171.0,91166.0,28.01370633]
[1740467515552,0.08769238,91170.0,91166.0,28.01370633]
[1740467515750,1.7291,91169.0,91166.0,28.01370633]
[1740467515950,1.7291,91168.0,91166.0,28.01370633]
[1740467516195,1.7291,91168.0,91166.0,27.84731582]
[1740467516920,1.7291,91169.0,91166.0,27.71921582]
[1740467517233,1.7291,91169.0,91166.0,27.70196682]
[1740467517637,1.195,91168.0,91166.0,27.70196682]
[1740467517780,1.195,91171.0,91166.0,27.70196682]
[1740467517978,0.3279,91170.0,91166.0,27.68472682]
[1740467518182,0.05480006,91169.0,91166.0,27.68472682]
[1740467518379,0.05484799,91168.0,91166.0,27.68472682]
[1740467518579,0.05484799,91168.0,91166.0,27.68133982]
[1740467518779,0.3279,91169.0,91166.0,27.59341656]
[1740467519778,0.0004318,91176.0,91166.0,27.59341656]
[1740467520977,0.0004318,91176.0,91166.0,27.59041656]
[1740467521115,0.3279,91194.0,91166.0,27.59041656]
[1740467521309,0.3279,91212.0,91167.0,0.08769238]
[1740467521578,0.3279,91212.0,91178.0,0.08769238]
[1740467521896,1.195,91213.0,91190.0,0.08769238]
[1740467522099,0.3279,91213.0,91201.0,0.08368969]
[1740467522306,0.8671,91232.0,91212.0,0.08769238]
[1740467522307,0.08338991,91214.0,91212.0,0.08769238]
[1740467522522,0.05486215,91282.0,91212.0,0.08769238]
[1740467522722,0.05486215,91282.0,91222.0,0.08769238]
[1740467523151,0.0548131,91280.0,91232.0,0.08769238]
[1740467523354,0.0548131,91280.0,91222.0,0.08769238]
[1740467523602,0.0548131,91280.0,91212.0,0.08769238]
[1740467523814,0.01139658,91281.0,91212.0,0.08769238]
[1740467523815,0.05421363,91278.0,91212.0,0.08769238]
[1740467524217,0.14190601,91278.0,91201.0,0.08368969]
[1740467524365,0.05448118,91254.0,91190.0,0.24772]
[1740467524570,0.08769238,91255.0,91166.0,27.59126746]
[1740467524571,0.05455975,91213.0,91188.0,0.18309857]
[1740467524727,0.05436591,91211.0,91188.0,0.18309857]
[1740467525338,1.00465156,91210.0,91189.0,0.08769238]
[1740467525537,1.00465156,91210.0,91189.0,0.08782205]
[1740467525948,0.05446607,91208.0,91199.0,0.08769238]
[1740467526207,0.07838991,91207.0,91199.0,0.08769238]
[1740467526604,0.13321357,91207.0,91189.0,0.00012967]
[1740467526844,0.00369868,91199.0,91189.0,0.00012967]
[1740467527275,0.00369868,91199.0,91190.0,0.08769238]
[1740467527478,0.00369868,91199.0,91189.0,0.00012967]
[1740467527604,0.07838991,91198.0,91189.0,0.00012967]
[1740467528389,0.07838991,91198.0,91193.0,0.08769238]
[1740467528645,0.00369868,91199.0,91193.0,0.07049538]
[1740467529619,0.00369868,91199.0,91194.0,0.002]
[1740467530632,0.07838991,91198.0,91193.0,0.02447698]
[1740467531845,0.07838991,91198.0,91189.0,0.00012967]
[1740467532077,0.8671,91197.0,91189.0,0.00012967]
[1740467532246,0.8671,91197.0,91191.0,0.08769238]
[1740467532634,0.07838991,91196.0,91177.0,0.059173]
[1740467532832,0.07838991,91196.0,91195.0,0.08769238]
[1740467533674,0.07838991,91196.0,91195.0,0.08638411]
[1740467533872,0.07838991,91196.0,91165.0,0.2476]
[1740467534096,0.8671,91195.0,91166.0,27.18155385]
[1740467534453,0.8671,91195.0,91166.0,27.17935385]
[1740467534691,0.8671,91195.0,91167.0,0.08769238]
[1740467534934,0.07838991,91194.0,91177.0,0.08769238]
[1740467535238,0.07838991,91194.0,91166.0,27.17935385]
[1740467535791,0.94548991,91193.0,91166.0,27.17935385]
[1740467535992,0.05422446,91191.0,91166.0,27.17935385]
[1740467536536,0.0464,91192.0,91166.0,27.17935385]
[1740467536537,0.05416378,91189.0,91166.0,27.17935385]
[1740467536738,0.05404726,91187.0,91166.0,27.17935385]
[1740467537440,0.05433181,91185.0,91168.0,0.08769238]
[1740467537648,0.05433181,91185.0,91166.0,27.17935385]
[1740467538052,0.05433181,91185.0,91168.0,0.08769238]
[1740467538259,0.05433181,91185.0,91166.0,27.01704623]
[1740467538474,0.01138638,91184.0,91166.0,27.01704623]
[1740467538722,0.05427475,91183.0,91166.0,27.01704623]
[1740467539339,0.05427475,91183.0,91168.0,0.0911]
[1740467540076,0.05428038,91181.0,91168.0,0.0911]
[1740467540278,0.05428038,91181.0,91166.0,26.93912988]
[1740467540686,0.94548991,91180.0,91167.0,0.08769238]
[1740467540865,0.05491615,91179.0,91167.0,0.08769238]
[1740467541061,0.05491615,91179.0,91177.0,0.08769238]
[1740467541062,0.07838991,91178.0,91177.0,0.08769238]
[1740467541275,0.07838991,91178.0,91177.0,0.08308738]
[1740467542914,0.07838991,91178.0,91167.0,0.08769238]
[1740467543066,0.07838991,91178.0,91166.0,26.93912988]
[1740467543268,0.94548991,91177.0,91166.0,26.93912988]
[1740467543491,1.47958991,91176.0,91166.0,26.92193178]
[1740467543865,1.47958991,91176.0,91167.0,0.08769238]
[1740467544052,0.07838991,91176.0,91167.0,0.08769238]
[1740467545536,0.01138638,91184.0,91167.0,0.08769238]
[1740467545747,0.01138638,91184.0,91183.0,0.08769238]
[1740467546873,0.01138638,91184.0,91183.0,0.08064127]
[1740467547891,0.02592723,91184.0,91183.0,0.07372634]
[1740467548110,0.10431714,91184.0,91183.0,0.07372634]
[1740467548285,0.08977629,91184.0,91183.0,0.07372634]
[1740467548604,0.07838991,91184.0,91183.0,0.07372634]
[1740467548793,0.01454085,91183.0,91168.0,0.0907]
[1740467549159,0.01454085,91183.0,91178.0,0.0901]
[1740467549584,0.07838991,91184.0,91178.0,0.0901]
[1740467550404,0.01454085,91182.0,91177.0,0.07207413]
[1740467550808,0.01454085,91183.0,91177.0,0.07207413]
[1740467552170,0.01454085,91181.0,91177.0,0.07207413]
[1740467552470,0.01454085,91181.0,91166.0,26.92193178]
[1740467552822,0.01454085,91179.0,91166.0,26.91893178]
[1740467553183,0.01454085,91177.0,91166.0,26.89493178]
[1740467553767,0.05490976,91176.0,91166.0,26.89493178]
[1740467554331,0.07838991,91175.0,91166.0,26.89171478]
[1740467554940,0.76750279,91174.0,91166.0,26.86771478]
[1740467555141,0.76750279,91173.0,91166.0,26.86771478]
[1740467555346,0.0787,91171.0,91166.0,26.86771478]
[1740467555543,1.35607197,91170.0,91166.0,26.86771478]
[1740467555869,1.30160279,91170.0,91166.0,26.86771478]
[1740467556081,0.0466,91168.0,91166.0,26.86771478]
[1740467556287,1.31614364,91167.0,91166.0,26.73961478]
[1740467556670,1.31614364,91167.0,91166.0,26.71561478]
[1740467557027,1.31614364,91167.0,91166.0,26.31171478]
[1740467557211,1.31627312,91167.0,91166.0,26.12191478]
[1740467557702,0.78217312,91167.0,91166.0,25.89472459]
[1740467557846,0.78217312,91167.0,91166.0,25.88331909]
[1740467559072,0.78217312,91167.0,91166.0,25.85931909]
[1740467559073,0.79356251,91167.0,91166.0,25.85931909]
[1740467559274,0.79356251,91167.0,91166.0,25.8580226]
[1740467559875,1.34766251,91167.0,91166.0,25.6207226]
[1740467560098,1.34766251,91167.0,91166.0,25.61345217]
[1740467560327,1.34766251,91167.0,91166.0,24.93049823]
[1740467560697,1.36766251,91167.0,91166.0,24.90649823]
[1740467560898,1.33627312,91167.0,91166.0,24.88309861]
[1740467561102,1.35627312,91167.0,91166.0,24.88309861]
[1740467561511,1.33627312,91167.0,91166.0,24.88309861]
[1740467561714,1.35627312,91167.0,91166.0,24.87869861]
[1740467561914,1.34768128,91167.0,91166.0,24.87869861]
[1740467562121,1.34768128,91167.0,91166.0,24.85192061]
[1740467562322,1.34768128,91167.0,91166.0,24.84812061]
[1740467562495,1.34768128,91167.0,91166.0,24.82412061]
[1740467562718,1.36768128,91167.0,91166.0,24.82412061]
[1740467563295,1.36768128,91167.0,91166.0,24.68833149]
[1740467563742,1.35627312,91167.0,91166.0,24.68833149]
[1740467563980,1.36766605,91167.0,91166.0,24.32591004]
[1740467564446,1.35627312,91167.0,91166.0,24.31062227]
[1740467564771,1.36766652,91167.0,91166.0,24.31062227]
[1740467564997,1.36766652,91167.0,91166.0,24.14088116]
[1740467565199,1.36766652,91167.0,91166.0,23.85935121]
[1740467565348,1.36766652,91167.0,91166.0,23.7375469]
[1740467565671,1.34766652,91167.0,91166.0,23.7375469]
[1740467565876,1.34766652,91167.0,91166.0,23.6713469]
[1740467565877,1.36766652,91167.0,91166.0,23.6713469]
[1740467566097,1.36766652,91167.0,91166.0,23.44415672]
[1740467566237,1.34766652,91167.0,91166.0,23.44415672]
[1740467566464,1.34766652,91167.0,91166.0,23.22805735]
[1740467566850,1.33627312,91167.0,91166.0,23.22805735]
[1740467567048,1.33627312,91167.0,91166.0,23.16185735]
[1740467567247,1.34766797,91167.0,91166.0,23.16185735]
[1740467567450,1.34766797,91167.0,91166.0,23.13785735]
[1740467567654,1.34766797,91167.0,91166.0,23.10035735]
[1740467568080,1.34766797,91167.0,91166.0,22.98248487]
[1740467568227,1.34766797,91167.0,91166.0,22.72404894]
[1740467568728,1.34766797,91167.0,91166.0,22.44997708]
[1740467569114,1.30173227,91167.0,91166.0,22.43858226]
[1740467569395,1.30173227,91167.0,91166.0,22.43758226]
[1740467569787,0.61261939,91167.0,91166.0,22.43758226]
[1740467570019,0.07851939,91167.0,91166.0,22.43758226]
[1740467570231,0.08991946,91167.0,91166.0,22.43758226]
[1740467570405,0.77903234,91167.0,91166.0,22.43758226]
[1740467570580,0.77903234,91167.0,91166.0,22.43409522]
[1740467571185,0.77903234,91167.0,91166.0,22.40397122]
[1740467571772,1.33313234,91167.0,91166.0,22.40397122]
[1740467572093,1.33313234,91167.0,91166.0,22.20812496]
[1740467572296,0.79903234,91167.0,91166.0,21.98122145]
[1740467572493,0.78763227,91167.0,91166.0,21.92043402]
[1740467572896,1.34173227,91167.0,91166.0,21.91833402]
[1740467573780,1.34173227,91167.0,91166.0,21.65359418]
[1740467574141,1.34173227,91167.0,91166.0,21.57683084]
[1740467574142,1.30173227,91167.0,91166.0,21.57683084]
[1740467574278,1.32173227,91167.0,91166.0,21.57683084]
[1740467574919,1.32342887,91167.0,91166.0,21.57683084]
[1740467575282,1.32342887,91167.0,91166.0,21.56543578]
[1740467575743,1.33483345,91167.0,91166.0,21.56543578]
[1740467576878,1.35483345,91167.0,91166.0,21.56543578]
[1740467577531,1.35483345,91167.0,91166.0,21.56303578]
[1740467577733,1.40950416,91167.0,91166.0,21.32996805]
[1740467577952,1.40950416,91167.0,91166.0,21.30109]
[1740467578290,1.37483345,91167.0,91166.0,21.15281639]
[1740467578443,1.36342887,91167.0,91166.0,21.05178588]
[1740467578642,1.37484261,91167.0,91166.0,21.04368588]
[1740467578820,1.37484261,91167.0,91166.0,20.91938795]
[1740467579232,1.37484261,91167.0,91166.0,20.89422968]
[1740467580092,1.37484261,91167.0,91166.0,20.89182968]
[1740467580332,1.37484261,91167.0,91166.0,20.8529087]
[1740467580709,1.37484261,91167.0,91166.0,20.8053087]
[1740467580916,1.37484261,91167.0,91166.0,20.79060225]
[1740467581119,1.37484261,91167.0,91166.0,20.72440225]
[1740467581739,1.37484261,91167.0,91166.0,20.64148439]
[1740467581740,1.39484261,91167.0,91166.0,20.64148439]
[1740467582142,1.39484261,91167.0,91166.0,14.39422074]
[1740467582347,1.33484261,91167.0,91166.0,14.30914173]
[1740467582486,1.35484261,91167.0,91166.0,14.20252173]
[1740467582888,1.37484261,91167.0,91166.0,14.18396189]
[1740467583200,1.33484261,91167.0,91166.0,14.15876189]
[1740467583410,1.35484261,91167.0,91166.0,14.15876189]
[1740467583612,1.37484261,91167.0,91166.0,14.15286189]
[1740467583815,1.35484261,91167.0,91166.0,14.15286189]
[1740467584003,1.35484261,91167.0,91166.0,14.13624405]
[1740467584247,1.37484261,91167.0,91166.0,14.13384405]
[1740467585051,1.37484261,91167.0,91166.0,13.91384405]
[1740467585250,1.32342887,91167.0,91166.0,13.89123401]
[1740467585501,1.37484,91167.0,91166.0,13.87244879]
[1740467585922,1.39484,91167.0,91166.0,13.87244879]
[1740467586119,1.39484,91167.0,91166.0,13.86672943]
[1740467586319,1.39484,91167.0,91166.0,13.62101561]
[1740467586538,1.35484,91167.0,91166.0,13.49844891]
[1740467586745,1.39484,91167.0,91166.0,13.475023]
[1740467586950,1.39484,91167.0,91166.0,13.41191304]
[1740467587151,1.39484,91167.0,91166.0,13.35527285]
[1740467587392,1.37484,91167.0,91166.0,13.35527285]
[1740467587611,1.33484,91167.0,91166.0,13.33662238]
[1740467587752,1.37484,91167.0,91166.0,13.31407606]
[1740467587953,1.39484,91167.0,91166.0,13.31407606]
[1740467588177,1.37484,91167.0,91166.0,13.31407606]
[1740467588595,1.37484,91167.0,91166.0,13.30166828]
[1740467588800,1.33484,91167.0,91166.0,13.30166828]
[1740467588961,1.35484,91167.0,91166.0,13.30166828]
[1740467589392,1.35484,91167.0,91166.0,13.29594991]
[1740467589595,1.33484,91167.0,91166.0,13.29594991]
[1740467589800,1.35484,91167.0,91166.0,13.29594991]
[1740467590059,0.80074,91167.0,91166.0,13.37314991]
[1740467590252,0.11162712,91167.0,91166.0,13.42104991]
[1740467590502,0.68911288,91178.0,91166.0,13.42104991]
[1740467590673,0.68911288,91178.0,91177.0,0.08775153]
[1740467591127,0.68911288,91178.0,91177.0,0.08141347]
[1740467591304,0.56101288,91178.0,91177.0,0.08141347]
[1740467591532,0.3279,91178.0,91177.0,0.06527577]
[1740467591756,0.0025766,91191.0,91177.0,0.06527577]
[1740467591975,0.0025766,91191.0,91190.0,0.08775153]
[1740467592525,0.0025766,91191.0,91190.0,0.08202719]
[1740467594504,0.0025766,91191.0,91190.0,0.08093319]
[1740467594624,0.02,91182.0,91166.0,13.29638171]
[1740467594827,0.02,91175.0,91166.0,13.29638171]
[1740467595097,0.02,91170.0,91166.0,13.29638171]
[1740467595223,0.02,91167.0,91166.0,13.29638171]
[1740467596895,0.98881288,91167.0,91166.0,13.29638171]
[1740467597090,1.00881288,91167.0,91166.0,13.29638171]
[1740467597844,1.00881288,91167.0,91166.0,13.29398171]
[1740467598024,1.02881288,91167.0,91166.0,13.27942913]
[1740467598268,1.02881288,91167.0,91166.0,12.95321006]
[1740467598579,1.12491288,91167.0,91166.0,12.76939006]
[1740467598786,1.12491288,91167.0,91166.0,12.44206096]
[1740467598986,1.04881288,91167.0,91166.0,12.23363356]
[1740467599219,1.04881288,91167.0,91166.0,12.23323356]
[1740467599801,1.04881288,91167.0,91166.0,12.23341261]
[1740467599802,1.05050948,91167.0,91166.0,12.23341261]
[1740467599993,1.05050948,91167.0,91166.0,12.21843519]
[1740467600411,1.03050948,91167.0,91166.0,12.21850519]
[1740467600611,1.01050948,91167.0,91166.0,12.21610519]
[1740467600795,1.05050948,91167.0,91166.0,12.21610519]
[1740467601013,1.01050948,91167.0,91166.0,12.21610519]
[1740467601295,0.49640948,91167.0,91166.0,12.21570519]
[1740467601721,1.01050948,91167.0,91166.0,12.21480519]
[1740467601835,1.01050948,91167.0,91166.0,12.21380519]
[1740467602215,0.47640948,91167.0,91166.0,12.21380519]
[1740467602403,0.47640948,91167.0,91166.0,12.21170519]
[1740467602779,1.03050948,91167.0,91166.0,12.21170519]
[1740467602986,0.51640948,91167.0,91166.0,12.20408019]
[1740467603186,1.05050948,91167.0,91166.0,11.9277908]
[1740467603965,1.05050948,91167.0,91166.0,11.8787508]
[1740467604167,0.99050948,91167.0,91166.0,11.8125508]
[1740467604424,1.01050948,91167.0,91166.0,11.8125508]
[1740467604591,1.05050948,91167.0,91166.0,11.8116508]
[1740467605372,1.05050948,91167.0,91166.0,11.80498628]
[1740467605780,1.05050948,91167.0,91166.0,11.62645028]
[1740467605934,1.05050948,91167.0,91166.0,11.55244028]
[1740467606133,1.05050948,91167.0,91166.0,11.446749]
[1740467606342,1.05050948,91167.0,91166.0,11.372539]
[1740467606533,1.05050948,91167.0,91166.0,11.18958065]
[1740467606833,1.01050948,91167.0,91166.0,5.18958065]
[1740467607043,1.05050948,91167.0,91166.0,5.17218065]
[1740467607246,1.05050948,91167.0,91166.0,4.90815047]
[1740467607587,1.05050948,91167.0,91166.0,4.90141019]
[1740467607743,1.05050948,91167.0,91166.0,4.60946208]
[1740467607952,1.05050948,91167.0,91166.0,4.38953974]
[1740467608159,1.05050948,91167.0,91166.0,4.16381417]
[1740467608352,1.05050948,91167.0,91166.0,4.09751417]
[1740467608556,1.07243948,91167.0,91166.0,4.07611417]
[1740467608826,1.07243948,91167.0,91166.0,3.76472766]
[1740467609029,1.07243948,91167.0,91166.0,3.51414548]
[1740467609230,2.04111348,91167.0,91166.0,1.35024153]
[1740467609433,1.52826248,91167.0,91166.0,0.69873663]
[1740467609641,1.50633248,91167.0,91166.0,0.68723663]
[1740467609845,1.50633248,91167.0,91166.0,0.63160499]
[1740467610052,1.46633248,91167.0,91166.0,0.61828414]
[1740467610256,1.05050948,91167.0,91166.0,0.55198414]
[1740467610454,1.03050948,91167.0,91166.0,0.48219657]
[1740467610661,1.01050948,91167.0,91166.0,0.42849657]
[1740467610838,1.05050948,91167.0,91166.0,0.40004628]
[1740467611060,1.05050948,91167.0,91166.0,0.36342812]
[1740467611267,1.05050948,91167.0,91166.0,0.30786603]
[1740467611472,1.52940748,91167.0,91166.0,0.02753158]
[1740467611675,1.52940748,91167.0,91142.0,0.0008498]
[1740467611676,0.0905,91166.0,91142.0,0.0008498]
[1740467611852,0.50931913,91165.0,91142.0,0.0008498]
[1740467612062,2.051821,91164.0,91142.0,0.0008498]
[1740467612259,0.45471288,91165.0,91142.0,0.0008498]
[1740467612461,0.98881288,91164.0,91142.0,0.0008498]
[1740467616062,0.5628009,91163.0,91142.0,0.0008498]
[1740467616271,0.5628009,91162.0,91142.0,0.0008498]
[1740467617181,1.4299009,91161.0,91142.0,0.0008498]
[1740467617367,0.05423647,91160.0,91142.0,0.0008498]
[1740467617574,0.0549822,91158.0,91142.0,0.0008498]
[1740467617829,0.05407132,91156.0,91142.0,0.0008498]
[1740467618030,0.05444706,91154.0,91142.0,0.0008498]
[1740467618576,0.05493884,91152.0,91142.0,0.0008498]
[1740467618779,0.0544251,91150.0,91142.0,0.0008498]
[1740467619295,1.4299009,91149.0,91142.0,0.0008498]
[1740467619905,0.5628009,91149.0,91142.0,0.0008498]
[1740467620131,0.70248518,91148.0,91124.0,0.0008502]
[1740467620334,0.70248518,91147.0,91124.0,0.0008502]
[1740467620852,1.56448518,91146.0,91124.0,0.0008502]
[1740467621410,0.35100613,91137.0,91124.0,0.0008502]
[1740467621611,1.56448518,91136.0,91133.0,4.75801191]
[1740467621888,1.56448518,91135.0,91133.0,4.38464225]
[1740467622074,1.56448518,91134.0,91124.0,0.0008502]
[1740467622223,1.56448518,91134.0,91111.0,0.13]
[1740467622449,1.56448518,91133.0,91111.0,0.13]
[1740467622667,0.00029303,91111.0,91099.0,27.15137158]
[1740467622872,1.56448518,91110.0,91099.0,26.87224454]
[1740467623148,1.56448518,91109.0,91099.0,20.77125391]
[1740467623327,1.68058518,91108.0,91099.0,20.75785391]
[1740467623531,0.75251236,91107.0,91099.0,17.36248982]
[1740467623740,0.02214,91105.0,91099.0,9.23352614]
[1740467623997,0.07586223,91098.0,91066.0,28.79806603]
[1740467624313,0.05498081,91085.0,91066.0,27.55455732]
[1740467624518,0.02214,91084.0,91066.0,27.10301374]
[1740467624716,0.02214,91080.0,91066.0,25.11252412]
[1740467624916,0.00043162,91080.0,91066.0,24.82406498]
[1740467625147,0.01247499,91066.0,91050.0,0.0008884]
[1740467625347,0.75251236,91065.0,91050.0,0.0008884]
[1740467625523,0.04765388,91052.0,90942.0,0.02287184]
[1740467625754,0.42,91051.0,90942.0,0.02287184]
[1740467625953,0.0921,91049.0,90942.0,0.02287184]
[1740467626283,0.0921,91049.0,91033.0,19.62395664]
[1740467626284,0.0921,91047.0,91033.0,19.62395664]
[1740467626471,0.0921,91045.0,91033.0,19.50565763]
[1740467626700,0.0921,91043.0,91033.0,19.32956556]
[1740467626977,0.5341,91042.0,91033.0,19.05916191]
[1740467627151,0.5341,91041.0,90942.0,0.02287184]
[1740467627351,0.0921,91039.0,91007.0,0.0008484]
[1740467627554,0.5341,91038.0,91007.0,0.0008484]
[1740467627760,0.0921,91037.0,91007.0,0.0008484]
[1740467627965,0.0921,91035.0,91007.0,0.0008484]
[1740467628145,0.0921,91032.0,91007.0,0.0008484]
[1740467628344,0.0921,91030.0,91007.0,0.0008484]
[1740467628575,0.0904,91029.0,91007.0,0.0008484]
[1740467628753,0.37039,91029.0,91007.0,0.0008484]
[1740467628950,0.27999,91029.0,91007.0,0.0008484]
[1740467629638,0.27999,91029.0,91022.0,0.12183326]
[1740467629797,0.5341,91028.0,91022.0,0.03586858]
[1740467630008,0.0549606,91027.0,91007.0,0.0008484]
[1740467630204,0.3349506,91027.0,91007.0,0.0008484]
[1740467630790,0.5341,91026.0,91007.0,0.0008484]
[1740467630994,0.05457445,91025.0,91007.0,0.0008484]
[1740467631176,0.27999,91025.0,91007.0,0.0008484]
[1740467631422,0.05481101,91022.0,91007.0,0.0008484]
[1740467631570,5.45,91021.0,91007.0,0.0008484]
[1740467631772,0.5341,91020.0,91007.0,0.0008484]
[1740467631993,0.0542538,91018.0,91007.0,0.0008484]
[1740467632200,0.05433925,91014.0,91007.0,0.0008484]
[1740467632379,0.33432925,91014.0,91007.0,0.0008484]
[1740467632814,0.05491241,91012.0,90963.0,0.35100613]
[1740467633006,0.33490241,91012.0,90973.0,0.49349783]
[1740467633210,0.33490241,91012.0,91000.0,2.63487228]
[1740467633371,0.33533349,91012.0,91000.0,2.58431872]
[1740467633756,0.33533349,91012.0,91000.0,2.49130975]
[1740467633910,0.33533349,91012.0,91000.0,2.41379205]
[1740467634114,0.33533349,91012.0,91000.0,2.35559095]
[1740467634320,0.33533349,91012.0,90985.0,0.35100613]
[1740467634321,0.47080379,91000.0,90999.0,31.232484]
[1740467634492,0.47080379,91000.0,90999.0,30.66516318]
[1740467634694,0.47080379,91000.0,90999.0,30.65529984]
[1740467634901,0.47080379,91000.0,90999.0,30.63374478]
[1740467635099,0.47080379,91000.0,90999.0,24.71444478]
[1740467635302,0.61204632,91000.0,90999.0,24.64664478]
[1740467635554,0.61204632,91000.0,90999.0,24.56276572]
[1740467635758,0.61204632,91000.0,90999.0,24.53377847]
[1740467635960,0.61204632,91000.0,90999.0,24.40035524]
[1740467636143,0.47080379,91000.0,90999.0,24.3830956]
[1740467636372,1.00490379,91000.0,90999.0,24.3742956]
[1740467636575,1.00490379,91000.0,90999.0,24.37102877]
[1740467636795,0.47080379,91000.0,90999.0,24.36082877]
[1740467637028,1.00490379,91000.0,90999.0,24.35862877]
[1740467637196,1.10309113,91000.0,90999.0,24.34251626]
[1740467637425,0.56899113,91000.0,90999.0,24.04073109]
[1740467637627,0.56899113,91000.0,90999.0,24.02924638]
[1740467637937,0.84921113,91000.0,90999.0,10.29485074]
[1740467638140,0.84921113,91000.0,90999.0,9.96853105]
[1740467638376,0.84921113,91000.0,90999.0,9.95060642]
[1740467638523,0.84921113,91000.0,90999.0,9.93840642]
[1740467638929,0.84921113,91000.0,90999.0,9.93320642]
[1740467639128,0.84921113,91000.0,90999.0,3.92311718]
[1740467639337,0.75102379,91000.0,90999.0,3.91231301]
[1740467639532,0.89427636,91000.0,90999.0,3.88696645]
[1740467639938,0.89427636,91000.0,90999.0,3.88066645]
[1740467640146,0.42347257,91000.0,90999.0,2.80216602]
[1740467640344,0.42347257,91000.0,90999.0,2.77697947]
[1740467640548,0.42347257,91000.0,90999.0,2.66653089]
[1740467640711,0.42347257,91000.0,90999.0,2.59475626]
[1740467640912,0.14325257,91000.0,90999.0,2.54184474]
[1740467641117,0.14325257,91000.0,90999.0,2.53185181]
[1740467641356,0.14325257,91000.0,90999.0,2.58129663]
[1740467641760,0.16050172,91000.0,90999.0,2.46701276]
[1740467641933,0.44072172,91000.0,90999.0,2.30800128]
[1740467642155,0.44072172,91000.0,90949.0,0.0762]
[1740467642357,0.44072172,91000.0,90973.0,0.49349783]
[1740467642568,0.44072172,91000.0,90997.0,0.35100613]
[1740467642569,0.42347257,91000.0,90997.0,0.35100613]
[1740467643386,0.14325257,91000.0,90999.0,0.02]
[1740467643607,0.14325257,91000.0,90999.0,0.0983]
[1740467643812,0.14325257,91000.0,90999.0,0.0962]
[1740467644013,0.14325257,91000.0,90999.0,0.07037994]
[1740467644233,0.14325257,91000.0,90997.0,0.35100613]
[1740467644564,0.09325257,91000.0,90997.0,0.35100613]
[1740467644877,0.05422231,91011.0,90997.0,0.35100613]
[1740467645077,0.00043108,91012.0,90997.0,0.35100613]
[1740467645078,0.00043108,91012.0,91010.0,0.35100613]
[1740467645278,0.0016992,91043.0,91010.0,0.35100613]
[1740467645279,0.0016992,91043.0,91010.0,0.31008199]
[1740467645529,0.0016992,91043.0,91042.0,0.32705157]
[1740467645746,0.0016992,91043.0,91042.0,0.31204598]
[1740467645973,0.3295992,91043.0,91042.0,0.2844582]
[1740467646164,0.3295992,91043.0,91042.0,0.0044582]
[1740467646384,1.28831156,91043.0,91042.0,0.34178364]
[1740467646534,1.28831156,91043.0,91042.0,0.30298364]
[1740467646736,0.75421156,91043.0,91042.0,0.35151312]
[1740467647291,0.05479901,91050.0,91042.0,0.12972948]
[1740467647465,0.05459377,91071.0,91049.0,0.08537105]
[1740467647632,0.3279,91072.0,91070.0,0.01941164]
[1740467647834,0.88491826,91073.0,91071.0,0.08787105]
[1740467648107,0.88491826,91073.0,91071.0,0.08057105]
[1740467648439,0.83052513,91073.0,91071.0,0.07917105]
[1740467648728,0.05428472,91090.0,91073.0,0.02]
[1740467648930,0.0016998,91091.0,91089.0,0.05896209]
[1740467649138,0.0016998,91091.0,91089.0,0.04863175]
[1740467649346,0.0016998,91091.0,91089.0,0.04323175]
[1740467649497,0.0016998,91091.0,91089.0,0.03853175]
[1740467649710,0.0016998,91091.0,91071.0,0.07410053]
[1740467649711,0.0016998,91091.0,91090.0,0.08787105]
[1740467650148,0.0016998,91091.0,91090.0,0.05097105]
[1740467650527,0.0016998,91091.0,91080.0,0.08787105]
[1740467650726,0.0016998,91091.0,91090.0,0.07827105]
[1740467650925,0.0016998,91091.0,91090.0,0.07477105]
[1740467651369,0.02,91142.0,91090.0,0.07277105]
[1740467651579,0.095,91150.0,91134.0,0.35129898]
[1740467651580,0.02,91145.0,91134.0,0.35129898]
[1740467651781,0.0547848,91156.0,91134.0,0.30749898]
[1740467651782,1.1966992,91135.0,91134.0,0.30749898]
[1740467652222,0.3295992,91135.0,91134.0,0.24789898]
[1740467652430,0.8636992,91135.0,91134.0,0.22039898]
[1740467652632,0.3295992,91135.0,91134.0,0.17069898]
[1740467652840,0.33003116,91135.0,91134.0,0.17069898]
[1740467653063,0.33003116,91135.0,91134.0,0.15169898]
[1740467653268,0.33003116,91135.0,91134.0,0.14494189]
[1740467653485,1.73123116,91135.0,91134.0,0.14494189]
[1740467653695,1.73123116,91135.0,91134.0,0.35129898]
[1740467654021,1.73123116,91135.0,91134.0,0.34929898]
[1740467654218,1.73123116,91135.0,91124.0,0.33674087]
[1740467654436,0.02,91121.0,91114.0,0.34869898]
[1740467654639,0.02,91119.0,91104.0,0.34869898]